fUSD/lending_fUSD_20260624
["ID","MTS","AMOUNT","RATE_DAILY","PERIOD"]
[426278532,1782234068000,500.0,0.00030136,120]
[426278526,1782234068000,500.0,0.00030136,120]
[426278533,1782234069000,500.0,0.00030136,120]
[426278534,1782234069000,497.40413178,0.00030136,120]
[426278536,1782234069000,152.31240289,6.519e-05,2]
[426278535,1782234069000,110.99240289,6.519e-05,2]
[426278537,1782234069000,25.96519422,6.519e-05,2]
[426278539,1782234069000,500.0,0.00030136,120]
[426278540,1782234069000,500.0,0.00030136,120]
[426278541,1782234069000,500.0,0.00030136,120]
[426278542,1782234069000,500.0,0.00030136,120]
[426278543,1782234069000,500.0,0.00030136,120]
[426278544,1782234069000,500.0,0.00030136,120]
[426278545,1782234069000,500.0,0.00030136,120]
[426278538,1782234069000,500.0,0.00030136,120]
[426278548,1782234070000,500.0,0.00030136,120]
[426278549,1782234070000,500.0,0.00030136,120]
[426278547,1782234070000,500.0,0.00030136,120]
[426278550,1782234070000,500.0,0.00030136,120]
[426278546,1782234070000,500.0,0.00030136,120]
[426278552,1782234070000,500.0,0.00030136,120]
[426278553,1782234070000,500.0,0.00030136,120]
[426278554,1782234070000,500.0,0.00030136,120]
[426278555,1782234070000,515.40574371,0.00030136,120]
[426278556,1782234070000,466.42032687,0.00030136,120]
[426278551,1782234070000,500.0,0.00030136,120]
[426278557,1782234071000,500.0,0.00030136,120]
[426278558,1782234071000,500.0,0.00030136,120]
[426278559,1782234071000,500.0,0.00030136,120]
[426278560,1782234071000,500.0,0.00030136,120]
[426278561,1782234071000,500.0,0.00030136,120]
[426278562,1782234071000,500.0,0.00030136,120]
[426278563,1782234071000,500.0,0.00030136,120]
[426278564,1782234071000,500.0,0.00030136,120]
[426278565,1782234071000,500.0,0.00030136,120]
[426278566,1782234071000,500.0,0.00030136,120]
[426278567,1782234072000,500.0,0.00030136,120]
[426278568,1782234072000,500.0,0.00030136,120]
[426278569,1782234072000,500.0,0.00030136,120]
[426278570,1782234072000,500.0,0.00030136,120]
[426278571,1782234072000,500.0,0.00030136,120]
[426278577,1782234072000,500.0,0.00030136,120]
[426278573,1782234072000,500.0,0.00030136,120]
[426278574,1782234072000,500.0,0.00030136,120]
[426278576,1782234072000,500.0,0.00030136,120]
[426278575,1782234072000,500.0,0.00030136,120]
[426278572,1782234072000,500.0,0.00030136,120]
[426278581,1782234073000,500.0,0.00030136,120]
[426278578,1782234073000,500.0,0.00030136,120]
[426278579,1782234073000,500.0,0.00030136,120]
[426278580,1782234073000,500.0,0.00030136,120]
[426278582,1782234073000,500.0,0.00030136,120]
[426278584,1782234073000,500.0,0.00030136,120]
[426278585,1782234073000,500.0,0.00030136,120]
[426278588,1782234073000,500.0,0.00030136,120]
[426278586,1782234073000,500.0,0.00030136,120]
[426278587,1782234073000,500.0,0.00030136,120]
[426278583,1782234073000,500.0,0.00030136,120]
[426278589,1782234074000,500.0,0.00030136,120]
[426278590,1782234074000,500.0,0.00030136,120]
[426278592,1782234074000,500.0,0.00030136,120]
[426278593,1782234074000,500.0,0.00030136,120]
[426278591,1782234074000,500.0,0.00030136,120]
[426278595,1782234074000,503.90413259,0.00030136,120]
[426278596,1782234074000,500.0,0.00030136,120]
[426278598,1782234074000,504.85301186,0.00030136,120]
[426278597,1782234074000,500.0,0.00030136,120]
[426278599,1782234074000,500.0,0.00030136,120]
[426278594,1782234074000,500.0,0.00030136,120]
[426278605,1782234075000,639.34146531,0.00030136,120]
[426278604,1782234075000,500.0,0.00030136,120]
[426278603,1782234075000,500.0,0.00030136,120]
[426278602,1782234075000,500.0,0.00030136,120]
[426278601,1782234075000,646.0,0.00030136,120]
[426278600,1782234075000,500.0,0.00030136,120]
[426278608,1782234076000,500.0,0.00030136,120]
[426278606,1782234076000,500.0,0.00030136,120]
[426278607,1782234076000,500.0,0.00030136,120]
[426278609,1782234076000,608.55792386,0.00030136,120]
[426278614,1782234076000,500.0,0.00030136,120]
[426278611,1782234076000,500.0,0.00030136,120]
[426278612,1782234076000,500.0,0.00030136,120]
[426278613,1782234076000,500.0,0.00030136,120]
[426278615,1782234076000,500.0,0.00030136,120]
[426278610,1782234076000,500.0,0.00030136,120]
[426278616,1782234077000,500.0,0.00030136,120]
[426278617,1782234077000,500.0,0.00030136,120]
[426278618,1782234077000,500.0,0.00030136,120]
[426278619,1782234077000,500.0,0.00030136,120]
[426278620,1782234077000,617.96,0.00030136,120]
[426278621,1782234077000,500.0,0.00030136,120]
[426278622,1782234077000,500.0,0.00030136,120]
[426278623,1782234077000,500.0,0.00030136,120]
[426278624,1782234077000,500.0,0.00030136,120]
[426278625,1782234077000,500.0,0.00030136,120]
[426278626,1782234078000,500.0,0.00030136,120]
[426278627,1782234078000,500.0,0.00030136,120]
[426278628,1782234078000,500.0,0.00030136,120]
[426278629,1782234078000,500.0,0.00030136,120]
[426278630,1782234078000,500.0,0.00030136,120]
[426278635,1782234078000,500.0,0.00030136,120]
[426278632,1782234078000,500.0,0.00030136,120]
[426278633,1782234078000,500.0,0.00030136,120]
[426278634,1782234078000,500.0,0.00030136,120]
[426278636,1782234078000,500.0,0.00030136,120]
[426278631,1782234078000,500.0,0.00030136,120]
[426278640,1782234079000,500.0,0.00030136,120]
[426278637,1782234079000,500.0,0.00030136,120]
[426278638,1782234079000,500.0,0.00030136,120]
[426278639,1782234079000,500.0,0.00030136,120]
[426278641,1782234079000,500.0,0.00030136,120]
[426278647,1782234079000,500.0,0.00030136,120]
[426278643,1782234079000,535.92446127,0.00030136,120]
[426278644,1782234079000,500.0,0.00030136,120]
[426278645,1782234079000,500.0,0.00030136,120]
[426278646,1782234079000,500.0,0.00030136,120]
[426278642,1782234079000,500.0,0.00030136,120]
[426278648,1782234080000,500.0,0.00030136,120]
[426278649,1782234080000,500.0,0.00030136,120]
[426278650,1782234080000,500.0,0.00030136,120]
[426278651,1782234080000,500.0,0.00030136,120]
[426278652,1782234080000,500.0,0.00030136,120]
[426278654,1782234080000,500.0,0.00030136,120]
[426278655,1782234080000,551.72987329,0.00030136,120]
[426278656,1782234080000,500.0,0.00030136,120]
[426278657,1782234080000,500.0,0.00030136,120]
[426278653,1782234080000,500.0,0.00030136,120]
[426278661,1782234081000,500.0,0.00030136,120]
[426278658,1782234081000,500.0,0.00030136,120]
[426278659,1782234081000,500.0,0.00030136,120]
[426278660,1782234081000,500.0,0.00030136,120]
[426278662,1782234081000,458.94909886,0.00030136,120]
[426278668,1782234081000,255.96134747,0.00030136,120]
[426278664,1782234081000,500.0,0.00030136,120]
[426278667,1782234081000,500.0,0.00030136,120]
[426278663,1782234081000,500.0,0.00030136,120]
[426278665,1782234081000,500.0,0.00030136,120]
[426278666,1782234081000,500.0,0.00030136,120]
[426278669,1782234082000,500.0,0.00030136,120]
[426278670,1782234082000,500.0,0.00030136,120]
[426278671,1782234082000,500.0,0.00030136,120]
[426278673,1782234082000,500.0,0.00030136,120]
[426278672,1782234082000,500.0,0.00030136,120]
[426278675,1782234082000,513.13624326,0.00030136,120]
[426278677,1782234082000,500.0,0.00030136,120]
[426278676,1782234082000,500.0,0.00030136,120]
[426278678,1782234082000,500.0,0.00030136,120]
[426278679,1782234082000,500.0,0.00030136,120]
[426278674,1782234082000,500.0,0.00030136,120]
[426278683,1782234083000,500.0,0.00030136,120]
[426278680,1782234083000,500.0,0.00030136,120]
[426278682,1782234083000,500.0,0.00030136,120]
[426278684,1782234083000,500.0,0.00030136,120]
[426278681,1782234083000,500.0,0.00030136,120]
[426278686,1782234083000,352.04,0.00030136,120]
[426278687,1782234083000,500.0,0.00030136,120]
[426278688,1782234083000,500.0,0.00030136,120]
[426278685,1782234083000,500.0,0.00030136,120]
[426278689,1782234083000,500.0,0.00030136,120]
[426278690,1782234083000,500.0,0.00030136,120]
[426278692,1782234084000,500.0,0.00030136,120]
[426278693,1782234084000,500.0,0.00030136,120]
[426278694,1782234084000,598.26229901,0.00030136,120]
[426278695,1782234084000,500.0,0.00030136,120]
[426278691,1782234084000,500.0,0.00030136,120]
[426278697,1782234084000,500.0,0.00030136,120]
[426278696,1782234084000,500.0,0.00030136,120]
[426278700,1782234084000,503.63074406,0.00030136,120]
[426278698,1782234084000,500.0,0.00030136,120]
[426278699,1782234084000,500.0,0.00030136,120]
[426278710,1782234085000,500.0,0.00030136,120]
[426278709,1782234085000,500.0,0.00030136,120]
[426278708,1782234085000,500.0,0.00030136,120]
[426278707,1782234085000,500.0,0.00030136,120]
[426278704,1782234085000,500.0,0.00030136,120]
[426278703,1782234085000,500.0,0.00030136,120]
[426278702,1782234085000,500.0,0.00030136,120]
[426278701,1782234085000,500.0,0.00030136,120]
[426278706,1782234085000,500.0,0.00030136,120]
[426278714,1782234086000,500.0,0.00030136,120]
[426278711,1782234086000,503.81403786,0.00030136,120]
[426278712,1782234086000,500.0,0.00030136,120]
[426278713,1782234086000,500.0,0.00030136,120]
[426278715,1782234086000,500.0,0.00030136,120]
[426278717,1782234086000,500.0,0.00030136,120]
[426278718,1782234086000,426.08,0.00030136,120]
[426278719,1782234086000,500.0,0.00030136,120]
[426278720,1782234086000,500.0,0.00030136,120]
[426278716,1782234086000,500.0,0.00030136,120]
[426278725,1782234087000,150.0,7.104e-05,7]
[426278724,1782234087000,324.92835279,0.00030136,120]
[426278723,1782234087000,500.0,0.00030136,120]
[426278722,1782234087000,500.0,0.00030136,120]
[426278721,1782234087000,500.0,0.00030136,120]
[426278730,1782234088000,150.0,6.68e-05,2]
[426278728,1782234088000,96.70194183,6.615e-05,2]
[426278729,1782234088000,53.29805817,6.615e-05,2]
[426278726,1782234088000,134.15240289,6.535e-05,2]
[426278727,1782234088000,89.49140917,6.535e-05,2]
[426278731,1782234089000,2.81900522,6.5e-05,2]
[426278732,1782234089000,147.18099478,6.5e-05,2]
[426278733,1782234092000,-150.0,7.117e-05,2]
[426278734,1782234098000,39.01235622,6.703e-05,2]
[426278735,1782234098000,263.48,6.703e-05,2]
[426278736,1782234098000,197.50764378,6.703e-05,2]
[426278737,1782234098000,24.00172316,6.703e-05,2]
[426278739,1782234098000,200.38645014,6.703e-05,2]
[426278738,1782234098000,269.95236255,6.703e-05,2]
[426278740,1782234098000,5.65946415,6.703e-05,2]
[426278742,1782234098000,298.84902226,6.703e-05,2]
[426278741,1782234098000,201.15097774,6.703e-05,2]
[426278743,1782234098000,138.04709694,6.703e-05,2]
[426278744,1782234098000,361.95290306,6.703e-05,2]
[426278746,1782234098000,209.91435121,6.703e-05,2]
[426278752,1782234098000,60.89280875,6.703e-05,2]
[426278745,1782234098000,138.04709694,6.703e-05,2]
[426278758,1782234098000,131.60719125,6.703e-05,2]
[426278747,1782234098000,179.29538296,6.703e-05,2]
[426278755,1782234098000,60.89280875,6.703e-05,2]
[426278756,1782234098000,153.75,6.703e-05,2]
[426278753,1782234098000,248.85797589,6.703e-05,2]
[426278757,1782234098000,153.75,6.703e-05,2]
[426278751,1782234098000,185.90773705,6.703e-05,2]
[426278749,1782234098000,158.99,6.703e-05,2]
[426278748,1782234098000,320.70461704,6.703e-05,2]
[426278750,1782234098000,20.30538296,6.703e-05,2]
[426278754,1782234098000,190.24921536,6.703e-05,2]
[426278764,1782234099000,291.1921627,6.703e-05,2]
[426278759,1782234099000,74.43041131,6.703e-05,2]
[426278760,1782234099000,221.96708904,6.703e-05,2]
[426278762,1782234099000,49.85249965,6.703e-05,2]
[426278761,1782234099000,153.75,6.703e-05,2]
[426278763,1782234099000,170.36572351,6.703e-05,2]
[426278765,1782234099000,356.18364587,6.703e-05,2]
[426278766,1782234099000,143.81635413,6.703e-05,2]
[426278768,1782234099000,212.47972012,6.703e-05,2]
[426278767,1782234099000,287.52027988,6.703e-05,2]
[426278769,1782234099000,253.90613273,6.703e-05,2]
[426278771,1782234099000,82.05386727,6.703e-05,2]
[426278770,1782234099000,164.04,6.703e-05,2]
[426278772,1782234099000,89.86546693,6.703e-05,2]
[426278773,1782234099000,-150.0,6.703e-05,2]
[426278775,1782234104000,-197.94,6.703e-05,2]
[426278777,1782234135000,-197.94,6.584e-05,2]
[426278779,1782234150000,222.65085932,0.000219,120]
[426278781,1782234151000,-123.88,6.616e-05,2]
[426278780,1782234151000,-74.06,6.584e-05,2]
[426278783,1782234170000,-197.94,6.51e-05,2]
[426278785,1782234183000,-160.0,6.55e-05,2]
[426278784,1782234183000,-13.70381206,6.51e-05,2]
[426278787,1782234183000,-216.39158367,6.618e-05,2]
[426278786,1782234183000,-160.0,6.55e-05,2]
[426278789,1782234183000,-509.20421886,6.679e-05,2]
[426278788,1782234183000,-509.20421886,6.679e-05,2]
[426278791,1782234183000,-509.20421886,6.679e-05,2]
[426278793,1782234183000,-509.20421886,6.679e-05,2]
[426278790,1782234183000,-509.20421886,6.679e-05,2]
[426278792,1782234183000,-509.20421886,6.679e-05,2]
[426278795,1782234183000,-509.20421886,6.679e-05,2]
[426278796,1782234183000,-509.20421886,6.679e-05,2]
[426278797,1782234183000,-509.20421886,6.679e-05,2]
[426278799,1782234183000,-509.20421886,6.679e-05,2]
[426278798,1782234183000,-509.20421886,6.679e-05,2]
[426278800,1782234183000,-509.20421886,6.679e-05,2]
[426278801,1782234183000,-509.20421886,6.679e-05,2]
[426278803,1782234183000,-509.20421886,6.679e-05,2]
[426278804,1782234183000,-509.20421886,6.679e-05,2]
[426278805,1782234183000,-509.20421886,6.679e-05,2]
[426278802,1782234183000,-509.20421886,6.679e-05,2]
[426278794,1782234183000,-509.20421886,6.679e-05,2]
[426278806,1782234183000,-284.22866479,6.679e-05,2]
[426278817,1782234184000,-509.20421886,6.679e-05,2]
[426278815,1782234184000,-509.20421886,6.679e-05,2]
[426278814,1782234184000,-509.20421886,6.679e-05,2]
[426278813,1782234184000,-509.20421886,6.679e-05,2]
[426278808,1782234184000,-200.0,6.672e-05,2]
[426278810,1782234184000,-509.20421886,6.679e-05,2]
[426278809,1782234184000,-224.97555407,6.679e-05,2]
[426278807,1782234184000,-216.39158367,6.619e-05,2]
[426278811,1782234184000,-509.20421886,6.679e-05,2]
[426278816,1782234184000,-509.20421886,6.679e-05,2]
[426278812,1782234184000,-509.20421886,6.679e-05,2]
[426278818,1782234184000,-509.20421886,6.679e-05,2]
[426278819,1782234184000,-509.20421886,6.679e-05,2]
[426278827,1782234184000,-509.20421886,6.679e-05,2]
[426278826,1782234184000,-509.20421886,6.679e-05,2]
[426278825,1782234184000,-509.20421886,6.679e-05,2]
[426278828,1782234184000,-192.95692278,6.679e-05,2]
[426278823,1782234184000,-509.20421886,6.679e-05,2]
[426278821,1782234184000,-509.20421886,6.679e-05,2]
[426278822,1782234184000,-509.20421886,6.679e-05,2]
[426278820,1782234184000,-509.20421886,6.679e-05,2]
[426278824,1782234184000,-509.20421886,6.679e-05,2]
[426278837,1782234185000,-509.20421886,6.679e-05,2]
[426278830,1782234185000,-509.20421886,6.679e-05,2]
[426278829,1782234185000,-316.24729608,6.679e-05,2]
[426278833,1782234185000,-509.20421886,6.679e-05,2]
[426278831,1782234185000,-509.20421886,6.679e-05,2]
[426278834,1782234185000,-509.20421886,6.679e-05,2]
[426278835,1782234185000,-509.20421886,6.679e-05,2]
[426278836,1782234185000,-509.20421886,6.679e-05,2]
[426278838,1782234185000,-509.20421886,6.679e-05,2]
[426278832,1782234185000,-509.20421886,6.679e-05,2]
[426278841,1782234185000,-509.20421886,6.679e-05,2]
[426278842,1782234185000,-500.0,6.679e-05,2]
[426278840,1782234185000,-509.20421886,6.679e-05,2]
[426278844,1782234185000,-500.0,6.679e-05,2]
[426278843,1782234185000,-500.0,6.679e-05,2]
[426278846,1782234185000,-500.0,6.679e-05,2]
[426278845,1782234185000,-500.0,6.679e-05,2]
[426278848,1782234185000,-500.0,6.679e-05,2]
[426278847,1782234185000,-500.0,6.679e-05,2]
[426278849,1782234185000,-73.3020776,6.679e-05,2]
[426278839,1782234185000,-509.20421886,6.679e-05,2]
[426278856,1782234187000,-500.0,6.679e-05,2]
[426278857,1782234187000,-500.0,6.679e-05,2]
[426278855,1782234187000,-500.0,6.679e-05,2]
[426278850,1782234187000,-160.0,6.552e-05,2]
[426278853,1782234187000,-500.0,6.679e-05,2]
[426278852,1782234187000,-426.6979224,6.679e-05,2]
[426278851,1782234187000,-160.0,6.552e-05,2]
[426278858,1782234187000,-500.0,6.679e-05,2]
[426278854,1782234187000,-500.0,6.679e-05,2]
[426278859,1782234187000,-500.0,6.679e-05,2]
[426278865,1782234187000,-500.0,6.679e-05,2]
[426278861,1782234187000,-434.47387946,6.679e-05,2]
[426278860,1782234187000,-500.0,6.679e-05,2]
[426278863,1782234187000,-500.0,6.679e-05,2]
[426278864,1782234187000,-500.0,6.679e-05,2]
[426278866,1782234187000,-500.0,6.679e-05,2]
[426278868,1782234187000,-390.54758986,6.679e-05,2]
[426278869,1782234187000,-500.0,6.679e-05,2]
[426278867,1782234187000,-500.0,6.679e-05,2]
[426278870,1782234187000,-500.0,6.679e-05,2]
[426278871,1782234187000,-428.28060828,6.679e-05,2]
[426278862,1782234187000,-500.0,6.679e-05,2]
[426278872,1782234201000,-1656.08,6.159e-05,2]
[426278874,1782234201000,-197.94,7.018e-05,2]
[426278875,1782234201000,250.0,6.774e-05,2]
[426278873,1782234201000,216.39158367,6.621e-05,2]
[426278877,1782234202000,160.0,6.553e-05,2]
[426278876,1782234202000,160.0,6.553e-05,2]
[426278878,1782234203000,500.0,6.86e-05,2]
[426278882,1782234216000,-500.0,6.584e-05,2]
[426278881,1782234216000,6730.14841633,6.584e-05,2]
[426278880,1782234216000,163.69,6.669e-05,2]
[426278879,1782234216000,163.69,5.928e-05,2]
[426278884,1782234232000,-150.0,6.219e-05,2]
[426278886,1782234232000,-150.0,6.342e-05,2]
[426278885,1782234232000,-150.0,6.281e-05,2]
[426278887,1782234232000,-150.0,6.404e-05,2]
[426278883,1782234232000,-500.0,6.159e-05,2]
[426278890,1782234232000,-160.0,6.555e-05,2]
[426278888,1782234232000,-150.0,6.465e-05,2]
[426278891,1782234232000,-160.0,6.555e-05,2]
[426278892,1782234232000,-55.79185325,6.583e-05,2]
[426278889,1782234232000,-150.0,6.527e-05,2]
[426278893,1782234233000,-94.20814675,6.583e-05,2]
[426278894,1782234233000,-999.99,6.583e-05,2]
[426278895,1782234233000,-618.24,6.583e-05,2]
[426278896,1782234233000,-37.74659228,6.583e-05,2]
[426278898,1782234233000,-2000.0,6.583e-05,2]
[426278900,1782234233000,-1802.02692667,6.583e-05,2]
[426278899,1782234233000,-1889.50140041,6.583e-05,2]
[426278897,1782234233000,-1917.13277397,6.583e-05,2]
[426278901,1782234233000,-1938.21845129,6.583e-05,2]
[426278902,1782234260000,-62.19453307,5.65e-05,2]
[426278903,1782234261000,-272.0,5.65e-05,2]
[426278904,1782234262000,-74.06,5.649e-05,2]
[426278905,1782234264000,-211.64381206,5.649e-05,2]
[426278906,1782234267000,-13.70381206,5.649e-05,2]
[426278912,1782234268000,-160.0,5.65e-05,2]
[426278913,1782234268000,-193.0,6.202e-05,2]
[426278911,1782234268000,-754.85546693,5.65e-05,2]
[426278908,1782234268000,-300.0,5.644e-05,2]
[426278907,1782234268000,-200.0,5.638e-05,2]
[426278914,1782234268000,-250.0,6.349e-05,2]
[426278909,1782234268000,-23.82625,5.644e-05,2]
[426278915,1782234268000,-160.0,6.557e-05,2]
[426278910,1782234268000,-398.49237588,5.649e-05,2]
[426278917,1782234268000,-150.0,6.582e-05,2]
[426278925,1782234268000,-300042.90046814,7.018e-05,2]
[426278924,1782234268000,-175.0,6.65e-05,2]
[426278922,1782234268000,-9999.99,6.584e-05,2]
[426278921,1782234268000,-150.99,6.584e-05,2]
[426278916,1782234268000,-160.0,6.557e-05,2]
[426278920,1782234268000,-2769.84158367,6.584e-05,2]
[426278919,1782234268000,-3045.74,6.583e-05,2]
[426278918,1782234268000,-415.36385538,6.583e-05,2]
[426278923,1782234268000,-150.0,6.589e-05,2]
[426278927,1782234269000,-250.0,6.202e-05,2]
[426278928,1782234269000,-250.0,7.018e-05,2]
[426278926,1782234269000,688.32,0.00021462,30]
[426278929,1782234271000,-500.0,7.018e-05,2]
[426278936,1782234272000,1297.00988926,6.703e-05,2]
[426278934,1782234272000,-160.0,6.559e-05,2]
[426278932,1782234272000,-190.0,5.756e-05,2]
[426278931,1782234272000,-150.0,5.699e-05,2]
[426278930,1782234272000,-160.0,5.651e-05,2]
[426278935,1782234272000,208.63313888,6.703e-05,2]
[426278933,1782234272000,-7.0,5.756e-05,2]
[426278939,1782234273000,337.03881497,5.641e-05,2]
[426278938,1782234273000,250.0,6.202e-05,2]
[426278937,1782234273000,-500.0,7.018e-05,2]
[426278940,1782234299000,-2151.94362168,7.017e-05,2]
[426278941,1782234313000,-2151.94362168,7.017e-05,2]
[426278942,1782234338000,3635.0,7.735e-05,5]
[426278943,1782234338000,-2151.94362168,7.017e-05,2]
[426278944,1782234364000,-2151.94362168,7.017e-05,2]
[426278945,1782234365000,-1702.9400976,7.017e-05,2]
[426278946,1782234390000,-1702.9400976,6.966e-05,2]
[426278947,1782234415000,-1702.9400976,6.966e-05,2]
[426278951,1782234441000,-202.9400976,6.702e-05,2]
[426278949,1782234441000,-500.0,6.702e-05,2]
[426278950,1782234441000,-500.0,6.702e-05,2]
[426278948,1782234441000,-500.0,6.702e-05,2]
[426278955,1782234466000,-395.2925331,6.702e-05,2]
[426278954,1782234466000,-242.7669469,6.702e-05,2]
[426278953,1782234466000,-500.0,6.702e-05,2]
[426278952,1782234466000,-297.0599024,6.702e-05,2]
[426278956,1782234468000,-104.7074669,6.702e-05,2]
[426278959,1782234468000,-330.4119155,6.702e-05,2]
[426278958,1782234468000,-500.0,6.702e-05,2]
[426278957,1782234468000,-500.0,6.702e-05,2]
[426278963,1782234469000,-265.5312979,6.702e-05,2]
[426278961,1782234469000,-500.0,6.702e-05,2]
[426278962,1782234469000,-500.0,6.702e-05,2]
[426278960,1782234469000,-169.5880845,6.702e-05,2]
[426278967,1782234494000,-200.6506803,6.702e-05,2]
[426278966,1782234494000,-500.0,6.702e-05,2]
[426278964,1782234494000,-234.4687021,6.702e-05,2]
[426278965,1782234494000,-500.0,6.702e-05,2]
[426278968,1782234496000,-297.0599024,6.702e-05,2]
[426278973,1782234521000,-500.0,6.702e-05,2]
[426278972,1782234521000,-162.39532069,6.702e-05,2]
[426278971,1782234521000,-499.99999999,6.702e-05,2]
[426278970,1782234521000,-500.0,6.702e-05,2]
[426278974,1782234521000,-500.0,6.702e-05,2]
[426278969,1782234521000,-2.2894173,6.702e-05,2]
[426278976,1782234521000,-532.45034551,6.702e-05,2]
[426278977,1782234521000,-600.0,6.8e-05,2]
[426278978,1782234521000,-188.82080213,6.81e-05,2]
[426278979,1782234521000,-1200.0,6.9e-05,2]
[426278980,1782234521000,-5045.45204049,6.918e-05,2]
[426278975,1782234521000,-268.59207389,6.702e-05,2]
[426278981,1782234522000,-297.0599024,6.779e-05,2]
[426278982,1782234522000,-1555.3600976,6.779e-05,2]
[426278984,1782234522000,-7260.36766597,6.966e-05,2]
[426278983,1782234522000,-1184.27223643,6.918e-05,2]
[426278985,1782234522000,-10000.0,6.966e-05,2]
[426278986,1782234522000,-10000.0,6.966e-05,2]
[426278988,1782234522000,-10000.0,6.966e-05,2]
[426278987,1782234522000,-10000.0,6.966e-05,2]
[426278989,1782234523000,-10000.0,6.966e-05,2]
[426278990,1782234523000,-10000.0,6.966e-05,2]
[426278991,1782234523000,-10000.0,6.966e-05,2]
[426278992,1782234523000,-10000.0,6.966e-05,2]
[426278993,1782234523000,-10000.0,6.966e-05,2]
[426278996,1782234523000,-10000.0,6.966e-05,2]
[426278995,1782234523000,-10000.0,6.966e-05,2]
[426278997,1782234523000,-10000.0,6.966e-05,2]
[426278998,1782234523000,-10000.0,6.966e-05,2]
[426278999,1782234523000,-10000.0,6.966e-05,2]
[426279000,1782234523000,-10000.0,6.966e-05,2]
[426278994,1782234523000,-10000.0,6.966e-05,2]
[426279007,1782234524000,-7163.75213883,6.966e-05,2]
[426279001,1782234524000,-10000.0,6.966e-05,2]
[426279002,1782234524000,-10000.0,6.966e-05,2]
[426279003,1782234524000,-10000.0,6.966e-05,2]
[426279004,1782234524000,-10000.0,6.966e-05,2]
[426279005,1782234524000,-10000.0,6.966e-05,2]
[426279006,1782234524000,-10000.0,6.966e-05,2]
[426279012,1782234524000,-1479.76084506,7.017e-05,2]
[426279010,1782234524000,-876.24786117,7.017e-05,2]
[426279009,1782234524000,-1800.0,7e-05,2]
[426279011,1782234524000,-3398.42009231,7.017e-05,2]
[426279015,1782234524000,-4711.81906263,7.018e-05,2]
[426279014,1782234524000,-160.0,7.018e-05,2]
[426279013,1782234524000,-250.0,7.018e-05,2]
[426279008,1782234524000,-160.0,6.967e-05,2]
[426279016,1782234549000,-10000.0,7.018e-05,2]
[426279017,1782234549000,-10000.0,7.018e-05,2]
[426279018,1782234549000,-10000.0,7.018e-05,2]
[426279019,1782234549000,-10000.0,7.018e-05,2]
[426279020,1782234549000,-10000.0,7.018e-05,2]
[426279022,1782234549000,-10000.0,7.018e-05,2]
[426279023,1782234549000,-10000.0,7.018e-05,2]
[426279024,1782234549000,-10000.0,7.018e-05,2]
[426279021,1782234549000,-234.4687021,7.018e-05,2]
[426279031,1782234550000,-10000.0,7.018e-05,2]
[426279025,1782234550000,-10000.0,7.018e-05,2]
[426279026,1782234550000,-10000.0,7.018e-05,2]
[426279027,1782234550000,-10000.0,7.018e-05,2]
[426279028,1782234550000,-10000.0,7.018e-05,2]
[426279030,1782234550000,-10000.0,7.018e-05,2]
[426279032,1782234550000,-10000.0,7.018e-05,2]
[426279029,1782234550000,-10000.0,7.018e-05,2]
[426279034,1782234550000,-10000.0,7.018e-05,2]
[426279040,1782234550000,-10000.0,7.018e-05,2]
[426279039,1782234550000,-10000.0,7.018e-05,2]